bitfinex/quotes_SOLUSD_20220104
["timestamp","ask_amount","ask_price","bid_price","bid_amount"]
[1641298145060,0.00266459,171.07,170.99,8.97]
[1641298146263,0.00266459,171.07,170.99,9.23]
[1641298146462,0.00266459,171.07,171.0,2.57268747]
[1641298146862,0.00266459,171.07,171.0,3.33268747]
[1641298147663,0.00266459,171.07,171.0,3.07268747]
[1641298148965,0.00266459,171.07,171.0,3.33268747]
[1641298150769,0.00266459,171.07,171.0,3.07268747]
[1641298152473,0.00266459,171.07,171.0,3.33268747]
[1641298154977,0.00266459,171.07,171.0,0.76]
[1641298155176,0.00266459,171.07,170.97,9.4498]
[1641298155779,0.00266459,171.07,170.97,0.5]
[1641298155980,0.00266459,171.07,170.96,8.47]
[1641298156179,0.00266459,171.07,170.96,10.89831267]
[1641298156982,0.00266459,171.07,170.96,11.15831267]
[1641298158284,0.00266459,171.07,170.96,11.65831267]
[1641298158784,1.50931022,171.07,170.96,11.65831267]
[1641298159314,0.00266459,171.07,170.96,11.65831267]
[1641298159909,1.28506459,171.07,170.96,11.65831267]
[1641298160910,1.28506459,171.07,170.96,3.18831267]
[1641298162313,1.28506459,171.07,170.96,5.24666243]
[1641298163616,0.00266459,171.07,170.97,8.47]
[1641298164013,0.00266459,171.07,170.97,9.23]
[1641298169123,0.00266459,171.07,170.97,8.73]
[1641298170452,0.00266459,171.07,170.97,9.23]
[1641298172226,0.00266459,171.07,170.97,17.9158]
[1641298175927,0.00266459,171.07,170.97,26.6837]
[1641298177330,0.00266459,171.07,170.97,17.9158]
[1641298180156,0.00266459,171.07,170.97,17.6558]
[1641298181458,0.00266459,171.07,170.99,2.51660992]
[1641298181657,0.00266459,171.07,171.0,8.47]
[1641298181859,0.00266459,171.07,171.0,8.97]
[1641298182059,0.00266459,171.07,171.0,9.23]
[1641298184961,0.00266459,171.07,171.0,8.97]
[1641298186463,0.00266459,171.07,171.0,9.23]
[1641298187163,0.00266459,171.07,171.0,10.65669368]
[1641298190571,0.00266459,171.07,171.0,9.23]
[1641298191365,0.00266459,171.07,171.0,8.97]
[1641298193164,0.00266459,171.07,171.0,0.5]
[1641298193365,30.49614687,171.07,170.97,35.16621988]
[1641298193568,30.49614687,171.07,170.97,11.43041988]
[1641298195267,30.49614687,171.07,170.97,11.69041988]
[1641298200773,0.00266459,171.07,170.97,11.69041988]
[1641298201472,0.00266459,171.07,170.98,8.47]
[1641298201974,0.00266459,171.07,170.98,9.23]
[1641298204575,0.00266459,171.07,170.98,8.73]
[1641298205777,0.00266459,171.07,170.98,17.498]
[1641298205975,0.00266459,171.07,170.98,17.998]
[1641298207778,0.00266459,171.07,170.98,19.42469368]
[1641298209380,0.00266459,171.07,170.99,8.7674]
[1641298209582,0.00266459,171.07,171.01,2.27491601]
[1641298209779,0.00266459,171.07,171.02,8.47]
[1641298209980,0.00266459,171.07,171.02,9.23]
[1641298213214,0.00266459,171.07,171.02,17.40169368]
[1641298213415,0.00266459,171.07,171.03,105.84]
[1641298213614,0.00266459,171.07,171.05,2.7793101]
[1641298213821,0.00266459,171.07,171.06,8.47]
[1641298214016,0.00266459,171.07,171.06,10.15669368]
[1641298214226,0.00266459,171.07,171.06,10.65669368]
[1641298214920,0.00266459,171.07,171.06,19.42059368]
[1641298216819,0.00985717,171.09,171.08,30.42588011]
[1641298217021,0.00985717,171.09,171.08,11.15588011]
[1641298217319,0.00985717,171.09,171.08,13.08257379]
[1641298219220,0.00985717,171.09,171.08,21.84577379]
[1641298220723,0.00985717,171.09,171.08,13.08257379]
[1641298222124,0.00985717,171.09,171.08,21.84567379]
[1641298223328,76.9729,171.16,171.09,8.75284283]
[1641298223627,2.75344563,171.19,171.11,2.67747962]
[1641298223827,2.75344563,171.19,171.12,8.47]
[1641298224031,2.75344563,171.19,171.12,8.73]
[1641298224328,2.75344563,171.19,171.12,9.23]
[1641298226832,2.75344563,171.19,171.12,8.97]
[1641298228136,2.75344563,171.19,171.12,9.23]
[1641298230334,2.75344563,171.19,171.08,42.0475733]
[1641298230536,22.976,171.18,171.09,8.47]
[1641298231234,22.976,171.18,171.1,2.54369815]
[1641298231439,22.976,171.18,171.11,8.47]
[1641298232241,22.976,171.18,171.11,9.23]
[1641298234447,24.48264563,171.18,171.11,9.23]
[1641298237153,22.976,171.18,171.11,9.23]
[1641298242369,1.2468,171.19,171.11,9.23]
[1641298242571,1.50664563,171.2,171.11,10.65669368]
[1641298243772,1.50664563,171.2,171.12,8.7607]
[1641298244071,25.50364563,171.21,171.14,2.55508691]
[1641298244275,25.50364563,171.21,171.14,11.02508691]
[1641298244470,23.997,171.21,171.14,11.78508691]
[1641298247877,23.997,171.21,171.14,13.21178059]
[1641298248078,23.997,171.21,171.14,11.52508691]
[1641298248477,23.997,171.21,171.14,3.05508691]
[1641298250081,23.997,171.21,171.14,0.5]
[1641298250278,23.997,171.21,171.11,10.39669368]
[1641298250880,2.77764563,171.2,171.11,10.39669368]
[1641298251080,2.77764563,171.2,171.12,2.9284044]
[1641298251385,2.77764563,171.2,171.12,3.4284044]
[1641298251581,2.77764563,171.2,171.12,3.6884044]
[1641298251982,1.50664563,171.19,171.12,3.6884044]
[1641298252384,1.50664563,171.19,171.13,8.47]
[1641298252583,1.271,171.2,171.13,8.73]
[1641298252783,1.271,171.2,171.13,9.23]
[1641298253889,23.997,171.21,171.13,9.23]
[1641298254287,23.997,171.21,171.13,13.73178825]
[1641298254985,79.1675,171.22,171.13,15.15848193]
[1641298255785,79.1675,171.22,171.13,10.65669368]
[1641298255986,1.3566,171.21,171.13,10.65669368]
[1641298256388,1.50664563,171.23,171.13,10.65669368]
[1641298256713,1.50664563,171.23,171.13,16.74169368]
[1641298257187,1.50664563,171.22,171.13,122.58169368]
[1641298257385,1.50664563,171.22,171.14,26.02062237]
[1641298257588,1.50664563,171.22,171.15,8.47]
[1641298257789,1.52664563,171.27,171.16,2.55857594]
[1641298257985,1.52664563,171.27,171.17,8.47]
[1641298258185,1.50664563,171.27,171.17,17.2281]
[1641298258385,1.50664563,171.27,171.17,19.41479368]
[1641298258587,26.00724563,171.27,171.18,1.42669368]
[1641298258789,26.00724563,171.27,171.19,11.21365447]
[1641298259094,26.00724563,171.27,171.19,11.97365447]
[1641298259286,27.32434563,171.27,171.19,11.97365447]
[1641298259687,1.50664563,171.26,171.19,11.97365447]
[1641298260088,1.50664563,171.26,171.19,11.71365447]
[1641298261289,1.50664563,171.25,171.19,11.71365447]
[1641298261490,1.50664563,171.25,171.19,11.97365447]
[1641298261888,1.50664563,171.26,171.19,11.97365447]
[1641298264591,27.32434563,171.27,171.19,11.97365447]
[1641298265395,25.8177,171.27,171.19,11.97365447]
[1641298266293,27.32434563,171.27,171.19,11.97365447]
[1641298266494,27.32434563,171.27,171.19,11.71365447]
[1641298267796,27.32434563,171.27,171.19,8.47]
[1641298267998,27.32434563,171.27,171.13,10.36719368]
[1641298267999,27.58434563,171.27,171.16,8.47]
[1641298268198,28.08434563,171.27,171.13,17.4105]
[1641298268800,28.08434563,171.27,171.14,2.94616095]
[1641298269001,28.08434563,171.27,171.14,11.41616095]
[1641298269002,1.50664563,171.26,171.14,11.41616095]
[1641298269201,1.50664563,171.26,171.14,11.91616095]
[1641298269805,1.50664563,171.24,171.14,12.17616095]
[1641298270907,1.50664563,171.24,171.14,3.70616095]
[1641298272331,1.50664563,171.24,171.14,12.17616095]
[1641298273030,24.99911154,171.22,171.14,12.17616095]
[1641298278035,24.99911154,171.22,171.14,9.23]
[1641298280936,24.99911154,171.22,171.14,8.97]
[1641298282338,24.99911154,171.22,171.14,0.5]
[1641298282738,24.99911154,171.22,171.13,11.83262379]
[1641298282939,24.99911154,171.22,171.13,20.30262379]
[1641298283339,26.50575717,171.22,171.13,20.30262379]
[1641298283539,1.3295,171.21,171.13,20.30262379]
[1641298283941,1.3295,171.21,171.13,20.56262379]
[1641298286243,1.3295,171.21,171.13,18.1705]
[1641298287346,1.3295,171.21,171.13,20.41146445]
[1641298288244,1.3295,171.21,171.13,20.15146445]
[1641298292148,0.72522505,171.21,171.13,20.15146445]
[1641298292548,1.50664563,171.23,171.13,28.39915813]
[1641298292748,1.2681,171.24,171.13,28.39915813]
[1641298292951,1.2681,171.24,171.13,28.65915813]
[1641298294451,1.2681,171.24,171.13,51.43565813]
[1641298295052,1.2681,171.24,171.13,52.74735813]
[1641298295355,1.2681,171.24,171.13,51.32066445]
[1641298295754,1.2681,171.24,171.13,52.74735813]
[1641298297461,24.5985,171.25,171.13,52.74735813]
[1641298298588,24.5985,171.25,171.14,8.7597]
[1641298298789,24.5985,171.25,171.16,2.46004862]
[1641298298989,24.5985,171.25,171.17,8.47]
[1641298299392,24.5985,171.25,171.17,9.23]
[1641298299590,25.9316,171.25,171.17,9.23]
[1641298300191,25.9316,171.25,171.17,6.23]
[1641298307998,27.43824563,171.25,171.17,6.23]
[1641298312500,27.43824563,171.25,171.17,5.97]
[1641298312801,27.43824563,171.25,171.13,8.47]
[1641298313000,27.69824563,171.25,171.13,8.47]
[1641298313203,26.1916,171.25,171.13,8.47]
[1641298313600,26.6916,171.25,171.13,10.61708288]
[1641298314001,1.50664563,171.24,171.13,10.61708288]
[1641298314201,1.50664563,171.24,171.13,11.11708288]
[1641298314401,1.76664563,171.24,171.13,11.11708288]
[1641298314802,1.76664563,171.24,171.13,11.37708288]
[1641298315502,1.29,171.23,171.13,11.37708288]
[1641298316008,1.55,171.23,171.13,11.37708288]
[1641298316403,1.29,171.23,171.13,11.37708288]
[1641298319106,1.50664563,171.22,171.13,11.37708288]
[1641298319907,1.50664563,171.22,171.13,11.11708288]
[1641298320707,1.50664563,171.21,171.13,11.11708288]
[1641298321110,1.50664563,171.21,171.13,11.37708288]
[1641298322208,1.50664563,171.22,171.13,11.37708288]
[1641298323207,1.3356,171.21,171.13,11.37708288]
[1641298323409,2.84224563,171.21,171.13,11.37708288]
[1641298324409,1.3356,171.21,171.13,11.37708288]
[1641298326310,2.84224563,171.21,171.13,11.37708288]
[1641298327311,1.3356,171.21,171.13,11.37708288]
[1641298328713,2.84224563,171.21,171.13,11.37708288]
[1641298332013,1.3356,171.21,171.13,11.37708288]
[1641298333617,1.3356,171.21,171.13,12.80377656]
[1641298333919,1.50664563,171.22,171.13,18.48577656]
[1641298334114,1.50664563,171.22,171.13,27.89696092]
[1641298334514,1.50664563,171.24,171.13,27.89696092]
[1641298334715,1.50664563,171.24,171.14,24.8489]
[1641298334916,1.50664563,171.24,171.16,3.01565002]
[1641298335116,1.50664563,171.24,171.17,8.47]
[1641298335317,24.5867,171.25,171.17,8.47]
[1641298335523,24.5867,171.25,171.17,9.23]
[1641298336719,26.09334563,171.25,171.17,9.23]
[1641298337121,26.09334563,171.25,171.17,10.65669368]
[1641298337321,24.5867,171.25,171.17,9.23]
[1641298337722,24.5867,171.25,171.17,0.5]
[1641298337923,26.35334563,171.25,171.14,8.47]
[1641298338122,26.85334563,171.25,171.14,8.47]
[1641298338526,1.50664563,171.22,171.14,8.47]
[1641298338722,1.50664563,171.22,171.14,11.5003164]
[1641298339126,1.50664563,171.22,171.14,11.7603164]
[1641298339343,1.50664563,171.23,171.14,11.7603164]
[1641298339944,1.50664563,171.22,171.14,11.7603164]
[1641298340444,1.50664563,171.23,171.14,11.7603164]
[1641298340847,1.50664563,171.23,171.14,8.73]
[1641298341848,1.50664563,171.22,171.14,8.73]
[1641298342645,1.50664563,171.22,171.15,2.47965943]
[1641298342948,1.50664563,171.22,171.12,8.47]
[1641298343148,2.26664563,171.22,171.09,8.47]
[1641298343347,2.26664563,171.22,171.09,1.42669368]
[1641298343348,1.3401,171.21,171.09,1.42669368]
[1641298343547,1.6001,171.21,171.09,1.42669368]
[1641298343749,1.50664563,171.19,171.09,1.42669368]
[1641298343949,1.50664563,171.19,171.09,3.82611103]
[1641298344148,30.2494647,171.18,171.09,2.39941735]
[1641298344350,30.2494647,171.18,171.09,2.89941735]
[1641298344547,30.5094647,171.18,171.09,2.89941735]
[1641298344948,33.27141033,171.18,171.09,2.89941735]
[1641298345151,33.77141033,171.18,171.09,2.89941735]
[1641298345749,1.50664563,171.17,171.09,2.89941735]
[1641298346152,1.76664563,171.17,171.08,2.78413727]
[1641298346351,25.55794563,171.17,171.08,2.78413727]
[1641298346954,26.88924563,171.17,171.08,2.78413727]
[1641298347355,26.62924563,171.17,171.08,2.78413727]
[1641298347756,26.62924563,171.17,171.09,1.42669368]
[1641298347956,26.62924563,171.17,171.08,2.78413727]
[1641298348157,26.62924563,171.17,171.08,3.04413727]
[1641298348357,26.62924563,171.17,171.08,3.54413727]
[1641298348656,25.1226,171.17,171.08,0.76]
[1641298348856,25.1226,171.17,171.08,0.26]
[1641298349057,25.3826,171.17,171.08,1.42669368]
[1641298349459,25.3826,171.17,171.08,0.76]
[1641298349860,26.88924563,171.17,171.08,0.26]
[1641298350060,26.88924563,171.17,171.07,2.91522456]
[1641298350458,26.88924563,171.17,171.08,1.42669368]
[1641298350658,26.88924563,171.17,171.07,2.91522456]
[1641298351059,26.88924563,171.17,171.07,4.34191824]
[1641298351459,26.88924563,171.17,171.07,2.91522456]
[1641298352063,26.88924563,171.17,171.08,1.42669368]
[1641298352461,26.88924563,171.17,171.08,0.76]
[1641298352661,26.88924563,171.17,171.07,2.15522456]
[1641298352867,27.38924563,171.17,171.05,11.67321103]
[1641298353063,102.55294563,171.17,171.05,10.24651735]
[1641298353661,1.50664563,171.16,171.05,10.24651735]
[1641298353862,1.50664563,171.16,171.05,12.73319633]
[1641298354063,1.76664563,171.16,171.05,12.99319633]
[1641298354261,2.26664563,171.16,171.06,1.42669368]
[1641298354462,2.26664563,171.16,171.06,1.92669368]
[1641298354863,3.34334563,171.16,171.06,1.92669368]
[1641298355263,2.84334563,171.16,171.06,1.92669368]
[1641298355664,3.34334563,171.16,171.06,1.92669368]
[1641298355863,1.8367,171.16,171.06,2.18669368]
[1641298356062,1.8367,171.16,171.06,0.5]
[1641298356263,2.0967,171.16,171.06,0.5]
[1641298356462,2.0967,171.16,171.06,1.42669368]
[1641298356663,2.0967,171.16,171.05,11.99658643]
[1641298357065,3.60334563,171.16,171.06,1.42669368]
[1641298357465,3.60334563,171.16,171.06,2.18669368]
[1641298357664,3.60334563,171.16,171.06,0.26]
[1641298357869,2.0967,171.16,171.06,0.26]
[1641298358064,2.0967,171.16,171.04,0.5]
[1641298358265,2.0967,171.16,171.05,2.45082978]
[1641298358467,1.8367,171.16,171.06,1.42669368]
[1641298358668,2.84334563,171.16,171.05,3.21082978]
[1641298358865,3.34334563,171.16,171.05,3.21082978]
[1641298359067,2.84334563,171.16,171.06,1.42669368]
[1641298359470,2.84334563,171.16,171.06,0.76]
[1641298359872,3.10334563,171.16,171.06,2.18669368]
[1641298360170,3.10334563,171.16,171.06,0.26]
[1641298360672,3.10334563,171.16,171.05,3.21082978]
[1641298361271,3.10334563,171.16,171.05,4.63752346]
[1641298361472,3.10334563,171.16,171.05,3.21082978]
[1641298361973,3.10334563,171.16,171.05,4.63752346]
[1641298362271,3.10334563,171.16,171.05,4.37752346]
[1641298362474,3.10334563,171.16,171.05,2.95082978]
[1641298363071,3.10334563,171.16,171.05,0.5]
[1641298363377,1.50664563,171.15,171.05,1.42669368]
[1641298363571,1.76664563,171.15,171.04,0.5]
[1641298363772,26.47224563,171.15,171.03,0.5]
[1641298363972,26.47224563,171.15,171.01,19.03039368]
[1641298364172,26.47224563,171.15,171.04,2.55602186]
[1641298364373,1.2985,171.14,171.04,3.05602186]
[1641298364573,1.5585,171.14,171.04,3.05602186]
[1641298364773,2.0585,171.14,171.04,3.05602186]
[1641298364976,1.5585,171.14,171.04,3.05602186]
[1641298365497,3.56514563,171.14,171.04,0.5]
[1641298365897,3.56514563,171.14,171.01,10.56039368]
[1641298366098,3.56514563,171.14,171.01,9.1337]
[1641298366298,12.03514563,171.14,171.01,10.56039368]
[1641298366502,12.03514563,171.14,171.01,1.42669368]
[1641298366698,1.50664563,171.12,170.99,2.49609354]
[1641298366898,8.47,171.11,170.99,2.49609354]
[1641298367098,24.0806,171.1,170.99,2.49609354]
[1641298367299,32.5506,171.1,170.99,2.49609354]
[1641298367500,26.9374213,171.09,170.99,2.49609354]
[1641298367699,24.3092,171.08,170.96,103.76889368]
[1641298367899,24.3092,171.08,170.96,102.8422]
[1641298368100,25.0692,171.08,170.96,102.8422]
[1641298368701,25.0692,171.08,170.97,2.86868468]
[1641298368901,24.5692,171.08,170.97,3.36868468]
[1641298369103,1.322,171.07,170.97,4.79537836]
[1641298369300,1.322,171.07,170.97,5.05537836]
[1641298369501,1.582,171.07,170.97,3.36868468]
[1641298369702,1.582,171.07,170.97,4.79537836]
[1641298370302,1.582,171.07,170.97,3.36868468]
[1641298371002,1.582,171.07,170.97,3.62868468]
[1641298371204,1.322,171.07,170.97,3.62868468]
[1641298372004,1.322,171.07,170.97,3.36868468]
[1641298372607,1.322,171.07,170.97,4.79537836]
[1641298373206,1.322,171.07,170.97,29.67687836]
[1641298373607,24.3092,171.08,170.98,5.97000366]
[1641298373810,26.9374213,171.09,170.98,5.97000366]
[1641298374008,26.9374213,171.09,171.0,2.38037346]
[1641298374409,26.9374213,171.09,171.01,1.42669368]
[1641298374607,26.9374213,171.09,171.01,1.68669368]
[1641298374807,26.9374213,171.09,171.01,2.18669368]
[1641298375011,51.7092213,171.09,171.02,1.42669368]
[1641298375408,51.7092213,171.09,171.02,0.5]
[1641298375608,51.9692213,171.09,171.03,2.93969264]
[1641298375809,1.2637,171.08,171.03,2.93969264]
[1641298376008,1.2637,171.08,171.03,3.43969264]
[1641298376610,51.7092213,171.09,171.03,3.43969264]
[1641298376810,51.7092213,171.09,171.03,3.69969264]
[1641298376811,24.7718,171.09,171.03,3.69969264]
[1641298377311,75.2507,171.1,171.03,3.69969264]
[1641298378812,75.2507,171.1,171.03,0.76]
[1641298379012,75.2507,171.1,171.0,2.0617]
[1641298379214,75.2507,171.1,171.0,1.5617]
[1641298379413,75.2507,171.1,171.0,2.0617]
[1641298379614,75.2507,171.1,171.0,1.8017]
[1641298379813,75.2507,171.1,171.0,4.76173088]
[1641298381113,75.2507,171.1,171.0,5.02173088]
[1641298382115,22.7126,171.1,171.0,5.02173088]
[1641298382917,25.32691494,171.11,171.0,5.02173088]
[1641298384519,22.8496,171.1,171.0,5.02173088]
[1641298386319,25.32691494,171.11,171.0,5.02173088]
[1641298386719,25.32691494,171.11,171.0,4.76173088]
[1641298386919,24.1963,171.1,171.0,4.76173088]
[1641298387322,24.4563,171.1,171.0,4.76173088]
[1641298388125,1.306,171.09,171.0,5.02173088]
[1641298388523,1.566,171.09,171.0,5.02173088]
[1641298389324,1.306,171.09,171.0,5.02173088]
[1641298390124,1.306,171.09,171.0,0.5]
[1641298390324,1.566,171.09,171.0,0.5]
[1641298390525,2.066,171.09,170.95,10.0066]
[1641298390727,2.066,171.09,170.95,10.5066]
[1641298390925,2.066,171.09,170.95,9.1862]
[1641298391128,1.50664563,171.07,170.95,11.49934665]
[1641298391326,25.11044563,171.07,170.95,9.1862]
[1641298391626,25.87044563,171.07,170.95,0.26]
[1641298391845,1.2534,171.06,170.93,8.9117]
[1641298392045,1.5134,171.06,170.93,8.9117]
[1641298392450,1.5134,171.06,170.94,2.84313905]
[1641298392852,1.5134,171.06,170.94,3.34313905]
[1641298393555,2.0134,171.06,170.94,3.34313905]
[1641298394355,2.0134,171.06,170.94,3.60313905]
[1641298394954,2.0134,171.06,170.86,17.3965]
[1641298394955,11.91009368,171.06,170.86,17.3965]
[1641298395156,123.4384,171.05,170.86,17.3965]
[1641298395354,8.47,171.04,170.86,17.3965]
[1641298395559,23.6232,171.03,170.86,17.3965]
[1641298395761,8.47,171.02,170.83,0.29257552]
[1641298395957,30.09214894,171.01,170.84,2.87724649]
[1641298396158,8.47,171.0,170.84,2.87724649]
[1641298396363,77.7411,170.99,170.85,1.24]
[1641298396558,86.4711,170.99,170.85,1.24]
[1641298396959,26.1418,170.98,170.85,1.24]
[1641298397159,26.1418,170.98,170.85,1.74]
[1641298397359,26.4018,170.98,170.85,1.74]
[1641298397758,26.4018,170.98,170.85,2.0]
[1641298398162,26.4018,170.98,170.85,1.74]
[1641298398561,34.8718,170.98,170.85,1.74]
[1641298398760,35.3718,170.98,170.85,1.74]
[1641298399361,35.3718,170.98,170.85,0.5]
[1641298399761,35.3718,170.98,170.84,3.37724649]
[1641298401062,35.3718,170.98,170.84,4.88244649]
[1641298401267,35.3718,170.98,170.84,27.45514649]
[1641298403066,35.3718,170.98,170.84,27.19514649]
[1641298403267,34.8718,170.98,170.84,27.19514649]
[1641298404265,34.8718,170.98,170.84,27.45514649]
[1641298404466,34.6118,170.98,170.84,27.45514649]
[1641298406067,1.268,170.98,170.84,35.92514649]
[1641298406268,1.50664563,171.0,170.85,1.42669368]
[1641298406468,1.50664563,171.0,170.86,8.47]
[1641298406666,1.50664563,171.0,170.87,11.20055653]
[1641298406866,30.09214894,171.01,170.88,8.47]
[1641298407066,30.09214894,171.01,170.88,11.43699368]
[1641298407267,30.09214894,171.01,170.88,11.93699368]
[1641298407468,27.00044563,171.03,170.89,1.42669368]
[1641298407668,1.50664563,171.03,170.9,2.62764753]
[1641298407868,1.50664563,171.03,170.91,8.47]
[1641298408069,1.2904,171.04,170.91,9.9682]
[1641298408267,1.2904,171.04,170.91,10.4682]
[1641298408468,28.16565171,171.03,170.91,10.4682]
[1641298414206,28.16565171,171.03,170.91,19.2402]
[1641298417308,100.88814563,171.07,170.91,19.2402]
[1641298417509,1.2905,171.06,170.92,32.9627]
[1641298417709,1.2905,171.06,170.93,10.97144799]
[1641298417910,1.2905,171.06,170.93,12.89814167]
[1641298418112,1.2905,171.06,170.93,13.15814167]
[1641298418410,26.01149258,171.05,170.93,14.48304167]
[1641298418810,26.01149258,171.05,170.93,23.25394167]
[1641298419811,26.01149258,171.05,170.93,14.48304167]
[1641298422813,23.4641,171.04,170.93,14.22304167]
[1641298423216,24.741,171.04,170.93,14.22304167]
[1641298424016,24.741,171.04,170.93,14.48304167]
[1641298425320,24.741,171.04,170.93,11.47144799]
[1641298425520,25.001,171.04,170.93,11.47144799]
[1641298426520,25.001,171.04,170.93,11.73144799]
[1641298427520,25.001,171.04,170.93,20.68294799]
[1641298428721,24.741,171.04,170.93,20.68294799]
[1641298428923,25.001,171.04,170.93,20.68294799]
[1641298433227,24.741,171.04,170.93,20.68294799]
[1641298433430,24.741,171.04,170.93,22.10964167]
[1641298435836,26.01149258,171.05,170.93,22.10964167]
[1641298439761,26.01149258,171.05,170.93,28.93164167]
[1641298443864,26.01149258,171.05,170.93,22.10964167]
[1641298444666,1.3304,171.04,170.93,22.10964167]
[1641298445668,24.3765,171.04,170.93,21.84964167]
[1641298445868,24.6365,171.04,170.93,20.42294799]
[1641298447570,24.6365,171.04,170.93,20.68294799]
[1641298448874,24.3765,171.04,170.93,20.68294799]
[1641298451976,24.3765,171.04,170.93,20.42294799]
[1641298452375,24.6365,171.04,170.93,20.42294799]
[1641298452776,24.3765,171.04,170.93,20.42294799]
[1641298452977,24.6365,171.04,170.93,20.42294799]
[1641298453578,24.6365,171.04,170.93,20.68294799]
[1641298453976,24.6365,171.04,170.93,20.18294799]
[1641298454477,24.6365,171.04,170.93,17.4215]
[1641298454681,24.6365,171.04,170.9,8.47]
[1641298454978,25.1365,171.04,170.9,8.47]
[1641298455378,1.50664563,171.02,170.9,8.97]
[1641298455588,1.76664563,171.02,170.91,2.36000629]
[1641298455981,1.76664563,171.02,170.91,2.86000629]
[1641298456180,2.26664563,171.02,170.91,2.86000629]
[1641298456781,1.3147,171.01,170.91,2.86000629]
[1641298456983,1.5747,171.01,170.91,2.86000629]
[1641298457784,1.5747,171.01,170.91,0.5]
[1641298457982,1.5747,171.01,170.88,8.8953]
[1641298457983,2.0747,171.01,170.88,9.3953]
[1641298458685,98.3455,171.01,170.88,9.3953]
[1641298458883,97.5855,171.01,170.89,2.55215768]
[1641298459086,99.09214563,171.01,170.89,2.55215768]
[1641298459286,99.09214563,171.01,170.89,27.99485136]
[1641298459485,99.09214563,171.01,170.9,8.47]
[1641298459687,99.09214563,171.01,170.9,13.335]
[1641298459885,97.5855,171.01,170.9,15.3254]
[1641298460889,97.5855,171.01,170.9,16.75209368]
[1641298463311,97.5855,171.01,170.9,25.52449368]
[1641298466315,97.5855,171.01,170.9,16.49209368]
[1641298466616,97.8455,171.01,170.9,11.62709368]
[1641298466815,97.5855,171.01,170.9,11.62709368]
[1641298467018,97.5855,171.01,170.9,10.39669368]
[1641298467216,97.8455,171.01,170.9,10.39669368]
[1641298467817,97.8455,171.01,170.9,8.97]
[1641298468418,97.8455,171.01,170.9,9.23]
[1641298468818,98.3455,171.01,170.9,9.23]
[1641298469218,98.3455,171.01,170.9,8.73]
[1641298470318,98.3455,171.01,170.9,0.26]
[1641298470523,98.3455,171.01,170.9,0.5]
[1641298470718,98.3455,171.01,170.89,3.05215768]
[1641298472722,99.85214563,171.01,170.89,3.05215768]
[1641298473220,1.50664563,171.0,170.89,3.05215768]
[1641298473422,2.00664563,171.0,170.89,3.05215768]
[1641298473620,2.26664563,171.0,170.89,3.05215768]
[1641298474021,2.26664563,171.0,170.89,3.31215768]
[1641298474222,28.64607693,170.98,170.89,3.31215768]
[1641298474422,29.14607693,170.98,170.89,0.5]
[1641298474626,25.9886,170.97,170.89,0.5]
[1641298474822,25.9886,170.97,170.84,35.0066]
[1641298475025,26.2486,170.97,170.84,35.0066]
[1641298475424,26.2486,170.97,170.85,2.48842412]
[1641298475626,25.9886,170.97,170.85,2.48842412]
[1641298475824,26.4886,170.97,170.85,2.98842412]
[1641298476427,25.9886,170.97,170.86,1.42669368]
[1641298476628,25.9886,170.97,170.86,7.51217031]
[1641298476829,25.9886,170.97,170.86,8.01217031]
[1641298477229,25.9886,170.97,170.86,9.59147031]
[1641298477430,24.673,170.97,170.86,9.59147031]
[1641298477629,24.673,170.97,170.88,2.60641433]
[1641298477933,24.673,170.97,170.88,3.10641433]
[1641298478231,24.673,170.97,170.88,3.36641433]
[1641298478432,29.92727693,170.98,170.88,3.36641433]
[1641298479031,1.2812,170.98,170.88,4.79310801]
[1641298479232,1.2812,170.98,170.89,8.47]
[1641298479433,23.3248,171.0,170.89,8.97]
[1641298479632,23.3248,171.0,170.91,2.63454536]
[1641298479832,23.3248,171.0,170.91,3.13454536]
[1641298480033,23.3248,171.0,170.91,4.82123904]
[1641298481237,102.39278136,171.01,170.91,4.82123904]
[1641298482537,102.39278136,171.01,170.91,4.56123904]
[1641298483140,102.65278136,171.01,170.91,4.56123904]
[1641298483347,102.65278136,171.01,170.91,3.13454536]
[1641298483537,1.2451,171.0,170.91,3.13454536]
[1641298483940,1.5051,171.0,170.91,3.13454536]